fUST/lending_fUST_20250912
["ID","MTS","AMOUNT","RATE_DAILY","PERIOD"]
[384936342,1757628643927,-480.0,0.00016257,2]
[384936344,1757628643936,-480.0,0.00016257,2]
[384936346,1757628643945,-480.0,0.00016257,2]
[384936348,1757628643954,-480.0,0.00016258,2]
[384936350,1757628643964,-480.0,0.00016258,2]
[384936352,1757628643974,-312.02156796,0.00016258,2]
[384936354,1757628643983,-480.0,0.00016258,2]
[384936356,1757628643992,-579.05993308,0.00016258,2]
[384936358,1757628644002,-480.0,0.00016258,2]
[384936360,1757628644012,-480.0,0.00016259,2]
[384936362,1757628644024,-480.0,0.00016259,2]
[384936364,1757628644033,-591.27,0.00016259,2]
[384936366,1757628644043,-480.0,0.00016259,2]
[384936368,1757628644052,-1837.64,0.00016259,2]
[384936370,1757628644062,-480.0,0.00016259,2]
[384936372,1757628644072,-534.5,0.00016259,2]
[384936374,1757628644081,-568.19,0.00016259,2]
[384936376,1757628644090,-480.0,0.00016259,2]
[384936378,1757628644100,-2564.07,0.00016259,2]
[384936380,1757628644110,-3000.0,0.0001626,2]
[384936382,1757628644119,-480.0,0.0001626,2]
[384936384,1757628644127,-480.0,0.0001626,2]
[384936386,1757628644136,-480.0,0.0001626,2]
[384936388,1757628644146,-480.0,0.0001626,2]
[384936390,1757628644156,-601.70565816,0.0001626,2]
[384936392,1757628644165,-480.0,0.0001626,2]
[384936394,1757628644175,-480.0,0.0001626,2]
[384936396,1757628644183,-555.57,0.0001626,2]
[384936398,1757628644193,-3000.0,0.0001627,2]
[384936400,1757628644202,-151.0,0.0001627,2]
[384936402,1757628644211,-151.0,0.0001627,2]
[384936404,1757628644220,-500.0,0.00016273,2]
[384936406,1757628644229,-3000.0,0.0001628,2]
[384936408,1757628644238,-3000.0,0.0001629,2]
[384936410,1757628644248,-3000.0,0.000163,2]
[384936412,1757628644257,-3000.0,0.0001631,2]
[384936413,1757628644266,-151.0,0.0001631,2]
[384936416,1757628644276,-151.0,0.0001631,2]
[384936417,1757628644285,-3000.0,0.0001632,2]
[384936420,1757628644294,-3000.0,0.0001633,2]
[384936421,1757628644303,-3000.0,0.0001634,2]
[384936423,1757628644312,-500.4233675,0.00016345,2]
[384936425,1757628644321,-3000.0,0.0001635,2]
[384936427,1757628644331,-3000.0,0.0001636,2]
[384936429,1757628644340,-3000.0,0.0001637,2]
[384936431,1757628644349,-3000.0,0.0001638,2]
[384936433,1757628644359,-260.0,0.00016381,2]
[384936435,1757628644368,-3000.0,0.0001639,2]
[384936437,1757628644377,-3000.0,0.000164,2]
[384936439,1757628644387,-3000.0,0.0001641,2]
[384936441,1757628644396,-3000.0,0.0001642,2]
[384936443,1757628644405,-3000.0,0.0001643,2]
[384936445,1757628644414,-500.0,0.00016438,2]
[384936447,1757628644423,-500.0,0.00016438,2]
[384936449,1757628644432,-500.0,0.00016438,2]
[384936451,1757628644441,-500.0,0.00016438,2]
[384936453,1757628644450,-500.0,0.00016438,2]
[384936455,1757628644459,-500.0,0.00016438,2]
[384936457,1757628644469,-500.0,0.00016438,2]
[384936459,1757628644478,-500.0,0.00016438,2]
[384936461,1757628644487,-500.0,0.00016438,2]
[384936463,1757628644495,-500.0,0.00016438,2]
[384936465,1757628644505,-152.518184,0.00016438,2]
[384936467,1757628644514,-3000.0,0.0001644,2]
[384936469,1757628644523,-3000.0,0.0001645,2]
[384936471,1757628644532,-3000.0,0.0001646,2]
[384936473,1757628644542,-3000.0,0.0001647,2]
[384936475,1757628644551,-4985.531588,0.0001648,2]
[384936477,1757628644560,-480.0,0.00016529,2]
[384936479,1757628644570,-480.0,0.00016529,2]
[384936481,1757628644580,-151.0,0.00016529,2]
[384936483,1757628644589,-609.24,0.00016529,2]
[384936485,1757628644598,-1228.99,0.00016531,2]
[384936487,1757628644608,-511.48,0.00016531,2]
[384936489,1757628644618,-480.0,0.00016531,2]
[384936491,1757628644627,-192.76761228,0.00016531,2]
[384936493,1757628644636,-545.97,0.00016531,2]
[384936495,1757628644645,-489.72,0.00016531,2]
[384936497,1757628644655,-503.58,0.00016531,2]
[384936499,1757628644664,-410.0,0.00016531,2]
[384936501,1757628644673,-480.0,0.00016531,2]
[384936503,1757628644682,-480.0,0.00016531,2]
[384936505,1757628644691,-480.0,0.00016531,2]
[384936507,1757628644700,-480.0,0.00016532,2]
[384936509,1757628644710,-480.0,0.00016532,2]
[384936511,1757628644719,-480.0,0.00016532,2]
[384936513,1757628644728,-480.0,0.00016532,2]
[384936515,1757628644737,-480.0,0.00016533,2]
[384936517,1757628644746,-480.0,0.00016533,2]
[384936519,1757628644755,-591.27,0.00016533,2]
[384936521,1757628644764,-480.0,0.00016533,2]
[384936523,1757628644773,-1837.64,0.00016533,2]
[384936525,1757628644784,-480.0,0.00016533,2]
[384936527,1757628644793,-534.5,0.00016533,2]
[384936529,1757628644802,-151.0,0.00016533,2]
[384936531,1757628644811,-568.19,0.00016533,2]
[384936533,1757628644823,-480.0,0.00016533,2]
[384936534,1757628644833,-2564.07,0.00016533,2]
[384936536,1757628644841,-480.0,0.00016534,2]
[384936538,1757628644850,-480.0,0.00016534,2]
[384936540,1757628644859,-480.0,0.00016534,2]
[384936542,1757628644868,-500.0,0.00016534,2]
[384936544,1757628644877,-480.0,0.00016534,2]
[384936546,1757628644886,-480.0,0.00016534,2]
[384936548,1757628644896,-587.0,0.00016556,2]
[384936550,1757628644906,-480.0,0.00016803,2]
[384936552,1757628644914,-480.0,0.00016803,2]
[384936554,1757628644924,-609.24,0.00016803,2]
[384936556,1757628644933,-1228.99,0.00016805,2]
[384936558,1757628644942,-511.48,0.00016805,2]
[384936560,1757628644952,-480.0,0.00016805,2]
[384936562,1757628644961,-407.036635,0.00016805,2]
[384936564,1757628644970,-407.036635,0.00016805,2]
[384936566,1757628644979,-407.036635,0.00016805,2]
[384936568,1757628644988,-407.036635,0.00016805,2]
[384936570,1757628644997,-545.97,0.00016805,2]
[384936572,1757628645006,-489.72,0.00016805,2]
[384936574,1757628645016,-503.58,0.00016805,2]
[384936576,1757628645025,-151.0,0.00016805,2]
[384936578,1757628645034,-477.85985289,0.00016805,2]
[384936580,1757628645044,-480.0,0.00016805,2]
[384936582,1757628645053,-480.0,0.00016805,2]
[384936584,1757628645063,-480.0,0.00016806,2]
[384936586,1757628645072,-360.96,0.00016806,2]
[384936587,1757628645082,-480.0,0.00016806,2]
[384936589,1757628645091,-480.0,0.00016806,2]
[384936591,1757628645100,-480.0,0.00016807,2]
[384936593,1757628645110,-546.22281309,0.00016807,2]
[384936595,1757628645119,-273.610234,0.00016807,2]
[384936597,1757628645128,-273.610234,0.00016807,2]
[384936599,1757628645137,-273.610234,0.00016807,2]
[384936601,1757628645147,-591.27,0.00016807,2]
[384936603,1757628645156,-273.610234,0.00016807,2]
[384936605,1757628645165,-480.0,0.00016807,2]
[384936607,1757628645174,-1837.64,0.00016807,2]
[384936609,1757628645183,-480.0,0.00016807,2]
[384936611,1757628645194,-534.5,0.00016807,2]
[384936613,1757628645203,-568.19,0.00016807,2]
[384936615,1757628645212,-480.0,0.00016807,2]
[384936617,1757628645221,-2564.07,0.00016807,2]
[384936619,1757628645230,-480.0,0.00016808,2]
[384936621,1757628645240,-480.0,0.00016808,2]
[384936623,1757628645249,-480.0,0.00016808,2]
[384936625,1757628645259,-500.0,0.00016808,2]
[384936627,1757628645269,-151.0,0.00016808,2]
[384936630,1757628645278,-151.0,0.00016808,2]
[384936634,1757628645288,-151.0,0.00016808,2]
[384936637,1757628645298,-480.0,0.00016808,2]
[384936639,1757628645307,-480.0,0.00016808,2]
[384936641,1757628645316,-152.40059947,0.00016891,2]
[384936643,1757628645325,-360.0,0.00016929,2]
[384936645,1757628645335,-153.87,0.00017077,2]
[384936647,1757628645344,-480.0,0.00017077,2]
[384936649,1757628645355,-609.24,0.00017077,2]
[384936651,1757628645364,-1228.99,0.00017079,2]
[384936654,1757628645374,-511.48,0.00017079,2]
[384936656,1757628645383,-480.0,0.00017079,2]
[384936658,1757628645392,-545.97,0.00017079,2]
[384936660,1757628645402,-489.72,0.00017079,2]
[384936662,1757628645411,-503.58,0.00017079,2]
[384936664,1757628645420,-480.0,0.00017079,2]
[384936666,1757628645429,-480.0,0.00017079,2]
[384936668,1757628645439,-578.26,0.0001708,2]
[384936670,1757628645448,-480.0,0.0001708,2]
[384936672,1757628645458,-480.0,0.0001708,2]
[384936674,1757628645467,-480.0,0.00017081,2]
[384936676,1757628645476,-591.27,0.00017081,2]
[384936678,1757628645487,-480.0,0.00017081,2]
[384936680,1757628645496,-1837.64,0.00017081,2]
[384936682,1757628645506,-391.03250506,0.00017081,2]
[384936684,1757628645515,-534.5,0.00017081,2]
[384936686,1757628645525,-568.19,0.00017081,2]
[384936688,1757628645534,-480.0,0.00017081,2]
[384936690,1757628645543,-2564.07,0.00017081,2]
[384936692,1757628645552,-480.0,0.00017082,2]
[384936694,1757628645561,-250.44,0.00017082,2]
[384936696,1757628645571,-480.0,0.00017082,2]
[384936698,1757628645580,-500.0,0.00017082,2]
[384936700,1757628645589,-480.0,0.00017082,2]
[384936702,1757628645598,-480.0,0.00017082,2]
[384936704,1757628645607,-409.0,0.00017133,2]
[384936706,1757628645616,-151.0,0.00017163,2]
[384936708,1757628645625,-976.0,0.00017163,2]
[384936709,1757628645635,-634.0,0.00017163,2]
[384936711,1757628645644,-2154.0,0.00017163,2]
[384936713,1757628645653,-1305.0,0.00017187,2]
[384936715,1757628645662,-1305.0,0.00017187,2]
[384936717,1757628645671,-1305.0,0.00017187,2]
[384936719,1757628645680,-1305.0,0.00017187,2]
[384936721,1757628645689,-220.0,0.00017187,2]
[384936723,1757628645698,-864.0,0.00017239,2]
[384936725,1757628645707,-500.0,0.00017294,2]
[384936727,1757628645717,-168.0,0.00017344,2]
[384936729,1757628645727,-480.0,0.00017351,2]
[384936731,1757628645736,-1228.99,0.00017353,2]
[384936733,1757628645746,-511.48,0.00017353,2]
[384936735,1757628645755,-480.0,0.00017353,2]
[384936737,1757628645764,-545.97,0.00017353,2]
[384936739,1757628645773,-489.72,0.00017353,2]
[384936740,1757628645781,-503.58,0.00017353,2]
[384936741,1757628645790,-480.0,0.00017353,2]
[384936742,1757628645799,-480.0,0.00017353,2]
[384936743,1757628645808,-480.0,0.00017354,2]
[384936744,1757628645821,-480.0,0.00017354,2]
[384936745,1757628645829,-480.0,0.00017355,2]
[384936746,1757628645838,-591.27,0.00017355,2]
[384936747,1757628645847,-480.0,0.00017355,2]
[384936748,1757628645942,-1837.64,0.00017355,2]
[384936749,1757628645952,-534.5,0.00017355,2]
[384936750,1757628645970,-568.19,0.00017355,2]
[384936751,1757628645981,-196.06,0.00017355,2]
[384936752,1757628645991,-2564.07,0.00017355,2]
[384936753,1757628646000,-476.85,0.00017356,2]
[384936754,1757628646010,-480.0,0.00017356,2]
[384936755,1757628646019,-382.12424406,0.00017356,2]
[384936756,1757628646028,-480.0,0.00017356,2]
[384936757,1757628646038,-480.0,0.00017356,2]
[384936759,1757628646047,-460.0,0.00017477,2]
[384936760,1757628646057,-480.0,0.00017625,2]
[384936761,1757628646066,-1228.99,0.00017627,2]
[384936762,1757628646076,-511.48,0.00017627,2]
[384936763,1757628646086,-423.88,0.00017627,2]
[384936764,1757628646095,-545.97,0.00017627,2]
[384936766,1757628646106,-489.72,0.00017627,2]
[384936767,1757628646115,-503.58,0.00017627,2]
[384936770,1757628646125,-480.0,0.00017627,2]
[384936772,1757628646135,-480.0,0.00017627,2]
[384936774,1757628646144,-480.0,0.00017628,2]
[384936775,1757628646154,-480.0,0.00017628,2]
[384936777,1757628646164,-480.0,0.00017629,2]
[384936780,1757628646174,-591.27,0.00017629,2]
[384936782,1757628646184,-480.0,0.00017629,2]
[384936784,1757628646194,-1837.64,0.00017629,2]
[384936786,1757628646204,-534.5,0.00017629,2]
[384936788,1757628646214,-568.19,0.00017629,2]
[384936790,1757628646224,-2564.07,0.00017629,2]
[384936792,1757628646234,-480.0,0.0001763,2]
[384936794,1757628646244,-480.0,0.0001763,2]
[384936796,1757628646253,-168.45,0.0001763,2]
[384936798,1757628646263,-168.0,0.00017733,2]
[384936800,1757628646272,-480.0,0.00017899,2]
[384936802,1757628646282,-1228.99,0.00017901,2]
[384936804,1757628646292,-511.48,0.00017901,2]
[384936806,1757628646302,-545.97,0.00017901,2]
[384936808,1757628646312,-489.72,0.00017901,2]
[384936810,1757628646322,-503.58,0.00017901,2]
[384936812,1757628646331,-180.72,0.00017901,2]
[384936814,1757628646341,-480.0,0.00017901,2]
[384936816,1757628646352,-480.0,0.00017902,2]
[384936818,1757628646362,-480.0,0.00017902,2]
[384936820,1757628646371,-480.0,0.00017903,2]
[384936822,1757628646381,-591.27,0.00017903,2]
[384936824,1757628646392,-339.45,0.00017903,2]
[384936826,1757628646401,-1837.64,0.00017903,2]
[384936829,1757628646412,-534.5,0.00017903,2]
[384936831,1757628646422,-568.19,0.00017903,2]
[384936833,1757628646432,-2564.07,0.00017903,2]
[384936835,1757628646441,-480.0,0.00017904,2]
[384936837,1757628646451,-480.0,0.00017904,2]
[384936839,1757628646461,-152.40059948,0.00017952,2]
[384936841,1757628646471,-560.0,0.00018025,2]
[384936843,1757628646480,-823.0,0.00018142,2]
[384936845,1757628646490,-271.17318052,0.00018173,2]
[384936847,1757628646500,-1228.99,0.00018175,2]
[384936849,1757628646509,-511.48,0.00018175,2]
[384936851,1757628646521,-545.97,0.00018175,2]
[384936853,1757628646530,-489.72,0.00018175,2]
[384936855,1757628646540,-503.58,0.00018175,2]
[384936857,1757628646549,-480.0,0.00018175,2]
[384936859,1757628646558,-480.0,0.00018176,2]
[384936861,1757628646568,-480.0,0.00018176,2]
[384936863,1757628646578,-480.0,0.00018177,2]
[384936866,1757628646588,-591.27,0.00018177,2]
[384936868,1757628646597,-1837.64,0.00018177,2]
[384936870,1757628646608,-534.5,0.00018177,2]
[384936872,1757628646617,-568.19,0.00018177,2]
[384936874,1757628646627,-2564.07,0.00018177,2]
[384936875,1757628646636,-151.0,0.00018178,2]
[384936877,1757628646647,-151.0,0.00018178,2]
[384936879,1757628646656,-480.0,0.00018178,2]
[384936882,1757628646666,-480.0,0.00018178,2]
[384936883,1757628646675,-500.0,0.00018244,2]
[384936885,1757628646685,-500.0,0.00018244,2]
[384936887,1757628646694,-581.53592228,0.0001832,2]
[384936889,1757628646703,-500.0,0.00018329,2]
[384936892,1757628646713,-1228.99,0.00018449,2]
[384936893,1757628646722,-511.48,0.00018449,2]
[384936895,1757628646732,-545.97,0.00018449,2]
[384936897,1757628646741,-489.72,0.00018449,2]
[384936899,1757628646752,-503.58,0.00018449,2]
[384936901,1757628646761,-480.0,0.00018449,2]
[384936904,1757628646771,-480.0,0.0001845,2]
[384936906,1757628646781,-480.0,0.0001845,2]
[384936908,1757628646791,-480.0,0.00018451,2]
[384936910,1757628646800,-591.27,0.00018451,2]
[384936912,1757628646809,-1837.64,0.00018451,2]
[384936914,1757628646824,-534.5,0.00018451,2]
[384936916,1757628646834,-568.19,0.00018451,2]
[384936918,1757628646844,-2564.07,0.00018451,2]
[384936920,1757628646853,-480.0,0.00018452,2]
[384936922,1757628646863,-480.0,0.00018452,2]
[384936924,1757628646873,-500.0,0.00018505,2]
[384936926,1757628646882,-152.40059948,0.00018507,2]
[384936928,1757628646891,-820.0,0.00018573,2]
[384936930,1757628646901,-1228.99,0.00018723,2]
[384936932,1757628646910,-511.48,0.00018723,2]
[384936934,1757628646920,-545.97,0.00018723,2]
[384936936,1757628646929,-489.72,0.00018723,2]
[384936938,1757628646938,-503.58,0.00018723,2]
[384936940,1757628646948,-158.21,0.00018723,2]
[384936941,1757628646957,-480.0,0.00018724,2]
[384936943,1757628646966,-480.0,0.00018724,2]
[384936945,1757628646976,-480.0,0.00018725,2]
[384936948,1757628646986,-591.27,0.00018725,2]
[384936950,1757628646995,-1837.64,0.00018725,2]
[384936951,1757628647006,-534.5,0.00018725,2]
[384936954,1757628647015,-568.19,0.00018725,2]
[384936955,1757628647025,-2564.07,0.00018725,2]
[384936958,1757628647034,-480.0,0.00018726,2]
[384936959,1757628647044,-480.0,0.00018726,2]
[384936961,1757628647053,-1000.0,0.00018792,2]
[384936963,1757628647062,-176.96728416,0.00018792,2]
[384936965,1757628647071,-234.6510052,0.00018877,2]
[384936967,1757628647081,-1000.0,0.00018963,20]
[384936969,1757628647091,-151.0,0.00018963,2]
[384936971,1757628647100,-1228.99,0.00018996,2]
[384936973,1757628647111,-511.48,0.00018996,2]
[384936975,1757628647120,-545.97,0.00018996,2]
[384936977,1757628647130,-489.72,0.00018996,2]
[384936979,1757628647139,-503.58,0.00018996,2]
[384936981,1757628647148,-480.0,0.00018998,2]
[384936983,1757628647157,-480.0,0.00018998,2]
[384936985,1757628647167,-480.0,0.00018999,2]
[384936987,1757628647176,-591.27,0.00018999,2]
[384936989,1757628647185,-1837.64,0.00018999,2]
[384936991,1757628647194,-534.5,0.00018999,2]
[384936993,1757628647203,-568.19,0.00018999,2]
[384936995,1757628647211,-2564.07,0.00018999,2]
[384936997,1757628647220,-151.0,0.00019,2]
[384936999,1757628647230,-480.0,0.00019,2]
[384937001,1757628647239,-480.0,0.00019,2]
[384937003,1757628647248,-152.40059947,0.00019079,2]
[384937005,1757628647257,-2021.76586159,0.00019182,2]
[384937007,1757628647266,-1228.99,0.0001927,2]
[384937009,1757628647275,-511.48,0.0001927,2]
[384937011,1757628647285,-545.97,0.0001927,2]
[384937013,1757628647294,-489.72,0.0001927,2]
[384937015,1757628647303,-503.58,0.0001927,2]
[384937017,1757628647312,-480.0,0.00019272,2]
[384937019,1757628647322,-480.0,0.00019272,2]
[384937021,1757628647332,-480.0,0.00019273,2]
[384937023,1757628647341,-591.27,0.00019273,2]
[384937025,1757628647350,-1837.64,0.00019273,2]
[384937027,1757628647360,-534.5,0.00019273,2]
[384937029,1757628647370,-568.19,0.00019273,2]
[384937031,1757628647379,-2564.07,0.00019273,2]
[384937033,1757628647389,-618.0,0.00019274,2]
[384937035,1757628647398,-480.0,0.00019274,2]
[384937037,1757628647407,-1500.0,0.0001934,2]
[384937039,1757628647416,-1228.99,0.00019544,2]
[384937041,1757628647425,-511.48,0.00019544,2]
[384937043,1757628647435,-407.036635,0.00019544,2]
[384937045,1757628647444,-407.036635,0.00019544,2]
[384937047,1757628647453,-407.036635,0.00019544,2]
[384937049,1757628647463,-407.036635,0.00019544,2]
[384937051,1757628647472,-545.97,0.00019544,2]
[384937053,1757628647481,-489.72,0.00019544,2]
[384937055,1757628647490,-503.58,0.00019544,2]
[384937057,1757628647500,-151.0,0.00019544,2]
[384937059,1757628647509,-251.54242576,0.00019546,2]
[384937061,1757628647518,-480.0,0.00019546,2]
[384937063,1757628647528,-480.0,0.00019547,2]
[384937065,1757628647537,-273.610234,0.00019547,2]
[384937067,1757628647546,-273.610234,0.00019547,2]
[384937069,1757628647556,-273.610234,0.00019547,2]
[384937071,1757628647565,-273.610234,0.00019547,2]
[384937073,1757628647575,-591.27,0.00019547,2]
[384937075,1757628647584,-1837.64,0.00019547,2]
[384937077,1757628647593,-534.5,0.00019547,2]
[384937079,1757628647605,-568.19,0.00019547,2]
[384937081,1757628647614,-2564.07,0.00019547,2]
[384937083,1757628647625,-480.0,0.00019548,2]
[384937085,1757628647635,-152.40059947,0.00019669,2]
[384937087,1757628647644,-219.019,0.00019689,2]
[384937089,1757628647653,-1228.99,0.00019818,2]
[384937091,1757628647663,-511.48,0.00019818,2]
[384937093,1757628647672,-545.97,0.00019818,2]
[384937095,1757628647681,-489.72,0.00019818,2]
[384937097,1757628647690,-503.58,0.00019818,2]
[384937099,1757628647699,-458.0411332,0.0001982,2]
[384937101,1757628647709,-151.0,0.00019821,2]
[384937103,1757628647718,-151.0,0.00019821,2]
[384937105,1757628647727,-151.0,0.00019821,2]
[384937107,1757628647736,-1000.0,0.00019821,2]
[384937109,1757628647745,-1000.0,0.00019821,2]
[384937111,1757628647754,-1000.0,0.00019821,2]
[384937113,1757628647764,-1000.0,0.00019821,2]
[384937115,1757628647773,-1000.0,0.00019821,2]
[384937117,1757628647782,-1000.0,0.00019821,2]
[384937119,1757628647791,-1000.0,0.00019821,2]
[384937121,1757628647800,-1000.0,0.00019821,2]
[384937132,1757628647898,-1000.0,0.00019821,2]
[384937134,1757628647908,-1000.0,0.00019821,2]
[384937136,1757628647917,-1000.0,0.00019821,2]
[384937138,1757628647926,-1000.0,0.00019821,2]
[384937140,1757628647935,-1000.0,0.00019821,2]
[384937142,1757628647944,-1000.0,0.00019821,2]
[384937144,1757628647953,-1000.0,0.00019821,2]
[384937146,1757628647962,-1000.0,0.00019821,2]
[384937148,1757628647971,-1000.0,0.00019821,2]
[384937150,1757628647980,-1000.0,0.00019821,2]
[384937152,1757628647989,-1000.0,0.00019821,2]
[384937154,1757628647998,-1000.0,0.00019821,2]
[384937156,1757628648007,-1000.0,0.00019821,2]
[384937158,1757628648016,-1000.0,0.00019821,2]
[384937160,1757628648025,-1000.0,0.00019821,2]
[384937162,1757628648035,-1000.0,0.00019821,2]
[384937164,1757628648045,-1000.0,0.00019821,2]
[384937166,1757628648055,-1000.0,0.00019821,2]
[384937168,1757628648064,-1000.0,0.00019821,2]
[384937170,1757628648074,-1000.0,0.00019821,2]
[384937172,1757628648083,-262.09264,0.00019821,2]
[384937174,1757628648092,-591.27,0.00019821,2]
[384937176,1757628648101,-1837.64,0.00019821,2]
[384937178,1757628648111,-534.5,0.00019821,2]
[384937180,1757628648120,-568.19,0.00019821,2]
[384937182,1757628648129,-2564.07,0.00019821,2]
[384937184,1757628648138,-386.91,0.00019822,2]
[384937186,1757628648147,-503.0,0.00019879,2]
[384937188,1757628648159,-2000.0,0.00019888,2]
[384937190,1757628648168,-4488.41633099,0.000199,2]
[384937192,1757628648177,-1229.17,0.00020092,2]
[384937194,1757628648186,-511.69,0.00020092,2]
[384937196,1757628648196,-546.14,0.00020092,2]
[384937198,1757628648205,-489.84,0.00020092,2]
[384937200,1757628648214,-503.67,0.00020092,2]
[384937202,1757628648223,-591.4,0.00020095,2]
[384937204,1757628648233,-1837.72,0.00020095,2]
[384937206,1757628648242,-534.64,0.00020095,2]
[384937208,1757628648252,-568.35,0.00020095,2]
[384937210,1757628648262,-2564.24273706,0.00020095,2]
[384937212,1757628648271,-339.0,0.00020107,2]
[384937214,1757628648282,-409.0,0.00020133,2]
[384937216,1757628648292,-528.961401,0.00020187,2]
[384937218,1757628648301,-152.40059948,0.00020278,5]
[384937220,1757628648310,-4488.41633091,0.00020327,2]
[384937222,1757628648319,-2067.94023772,0.00020436,2]
[384937224,1757628648328,-510.597284,0.00020548,2]
[384937226,1757628648337,-1900.0,0.00020712,2]
[384937228,1757628648348,-4488.41633091,0.00020755,2]
[384937230,1757628648361,-1000.0,0.0002086,20]
[384937232,1757628648371,-244.0,0.0002086,20]
[384937234,1757628648382,-152.40059947,0.00020905,5]
[384937236,1757628648393,-4488.41633091,0.00021182,2]
[384937238,1757628648402,-152.40059948,0.00021563,5]
[384937239,1757628648412,-4488.41633091,0.0002161,2]
[384937240,1757628648420,-151.0,0.0002161,2]
[384937241,1757628648430,-1900.0,0.00021808,2]
[384937242,1757628648439,-723.43,0.00021917,2]
[384937243,1757628648448,-723.43,0.00021917,2]
[384937244,1757628648457,-723.43,0.00021917,2]
[384937245,1757628648466,-723.43,0.00021917,2]
[384937246,1757628648475,-723.43,0.00021917,2]
[384937247,1757628648484,-723.43,0.00021917,2]
[384937248,1757628648493,-723.43,0.00021917,2]
[384937250,1757628648502,-723.43,0.00021917,2]
[384937252,1757628648511,-723.43,0.00021917,2]
[384937254,1757628648521,-723.43,0.00021917,2]
[384937256,1757628648530,-723.43,0.00021917,2]
[384937258,1757628648539,-723.43,0.00021917,2]
[384937260,1757628648548,-723.43,0.00021917,2]
[384937262,1757628648558,-723.43,0.00021917,2]
[384937264,1757628648567,-723.43,0.00021917,2]
[384937266,1757628648577,-723.43,0.00021917,2]
[384937268,1757628648587,-723.43,0.00021917,2]
[384937270,1757628648596,-723.43,0.00021917,2]
[384937272,1757628648606,-723.43,0.00021917,2]
[384937274,1757628648616,-723.43,0.00021917,2]
[384937276,1757628648625,-723.43,0.00021917,2]
[384937278,1757628648634,-723.43,0.00021917,2]
[384937280,1757628648644,-723.43,0.00021917,2]
[384937282,1757628648653,-723.44417745,0.00021917,2]
[384937284,1757628648662,-2739.81,0.00022,7]
[384937286,1757628648671,-8356.16,0.00022,7]
[384937288,1757628648681,-503.66,0.00022,2]
[384937290,1757628648690,-4488.41633091,0.00022037,2]
[384937292,1757628648699,-152.40059947,0.0002223,5]
[384937294,1757628648709,-4488.41633091,0.00022464,2]
[384937296,1757628648718,-1000.0,0.00022798,5]
[384937298,1757628648728,-503.66,0.00022801,2]
[384937300,1757628648737,-4488.41633091,0.00022892,2]
[384937302,1757628648746,-1900.0,0.00022904,2]
[384937304,1757628648756,-1000.0,0.00022946,20]
[384937306,1757628648765,-492.0,0.00022946,20]
[384937308,1757628648774,-2000.0,0.00023,2]
[384937310,1757628648783,-3000.0,0.00023,2]
[384937311,1757628648793,-2000.0,0.00023,2]
[384937314,1757628648802,-3000.0,0.0002301,2]
[384937316,1757628648813,-500.0,0.00023014,2]
[384937318,1757628648825,-3000.0,0.0002302,2]